Cogmind - Beta 13 @@@ ROGUE MODE // 2024.05.31 @ 06:43:23 Player: Blade Result: Self-destructed Performance ------------- Evolutions (2) 1000 Regions Visited (5) 1000 Robots Destroyed (20) 100 Value Destroyed (533) 533 Prototype IDs (1) 20 Alien Tech Used (0) 0 Bonus (138) 138 TOTAL SCORE: 2791 Bonus ------- Follower Combat Kills 138 Cogmind --------- Core Integrity 270/550 Matter 266/300 Energy 99/100 System Corruption 0% Temperature Cool (0) Movement Treading (160) Location -8/Materials Parts ------- > --- POWER (1) -------- (None) > --- PROPULSION (4) --- Light Treads Light Treads Light Treads > --- UTILITY (4) ------ Medium Storage Unit Hacking Suite Hacking Suite Hacking Suite > --- WEAPON (2) ------- Light Assault Rifle Heavy Assault Rifle > --- INVENTORY (10) --- Ion Engine Aluminum Leg Improved VTOL Module Hacking Suite Hacking Suite Peak State ------------ > --- POWER ------------ Light Nuclear Core > --- PROPULSION ------- Titanium Leg Titanium Leg Titanium Leg Improved VTOL Module > --- UTILITY ---------- Medium Storage Unit Core Shielding Hardened Light Armor Plating Hacking Suite > --- WEAPON ----------- Light Assault Rifle Bore Cannon > --- INVENTORY -------- Ion Engine Titanium Leg Hacking Suite Hacking Suite Hacking Suite Hacking Suite Light Assault Rifle Enhanced Flamer [Rating: 31] Favorites ----------- Power Ion Engine Engine Ion Engine Power Core Light Nuclear Core Propulsion Titanium Leg Treads Light Treads Leg Titanium Leg Flight Unit Improved VTOL Module Utility Hacking Suite Storage Medium Storage Unit Hackware Hacking Suite Protection Hardened Light Armor Plating Weapon Assault Rifle Energy Gun Small Laser Ballistic Gun Assault Rifle Ballistic Cannon Bore Cannon Special Weapon Enhanced Flamer Build | -11 -10 -10 -9 -9 -8 ------- Run | Yrd Mat Min Mat Min Mat Slots Evolved 4 | . . . 2 . 2 Power . | . . . . . . Propulsion 2 | . . . . . 2 Utility 2 | . . . 2 . . Weapon . | . . . . . . Parts Attached 33 | . 5 1 8 2 17 Power 4 | . . . 2 . 2 Engine 2 | . . . 1 . 1 Core 2 | . . . 1 . 1 Reactor . | . . . . . . Propulsion 15 | . 3 . 4 . 8 Treads 3 | . . . . . 3 Leg 11 | . 3 . 4 . 4 Wheel . | . . . . . . Hover . | . . . . . . Flight 1 | . . . . . 1 Utility 7 | . 2 . 2 . 3 Device . | . . . . . . Storage 1 | . 1 . . . . Processor . | . . . . . . Hackware 3 | . 1 . . . 2 Protection 3 | . . . 2 . 1 Artifact . | . . . . . . Weapon 7 | . . 1 . 2 4 Energy Gun . | . . . . . . Energy Cannon . | . . . . . . Ballistic Gun 4 | . . . . 1 3 Ballistic Cannon 1 | . . . . 1 . Launcher . | . . . . . . Special Weapon 2 | . . 1 . . 1 Impact Weapon . | . . . . . . Slashing Weapon . | . . . . . . Piercing Weapon . | . . . . . . Special Melee Weapon . | . . . . . . Unidentified Prototypes 1 | . . . . . 1 Corrupted Parts 1 | . . . . 1 . System Corruption 7 | . . . . 7 . Parts Lost 13 | . . . . . 13 Power 2 | . . . . . 2 Propulsion 4 | . . . . . 4 Utility 3 | . . . . . 3 Weapon 4 | . . . . . 4 Highest Loss Streak 11 | . . . . . 11 To Critical Strikes . | . . . . . . Average Slot Usage (%) 94 | . 90 100 94 97 85 Engine 6 | . 14 14 11 . . Core 4 | . . . . 11 4 Treads 1 | . . . . . 6 Leg 24 | . 28 28 22 22 25 Storage 11 | . 14 14 11 11 9 Hackware 11 | . 4 14 11 11 10 Protection 11 | . . . 17 22 11 Energy Gun 3 | . 14 8 . . . Ballistic Gun 12 | . 14 14 11 8 13 Ballistic Cannon 1 | . . . . 3 2 Special Weapon 5 | . . 6 11 7 . Naked Turns . | . . . . . . Heaviest Build 31 | 13 18 19 25 31 31 Greatest Support 68 | 20 20 20 34 34 68 Greatest Overweight (x) 1 | . . . 1 . . Average Overweight (x) . | . . . . . . Largest Inventory Capacity 10 | 8 10 10 10 10 10 Average Capacity 9 | 8 8 10 10 10 10 Most Carried 10 | 6 8 10 10 10 8 Average Carried 8 | 6 6 8 9 9 7 Final Capacity 10 | 8 10 10 10 10 10 Final Carried 10 | 6 8 10 10 9 5 Class Distribution -------------------- 68% | Mutant 29% | Scavenger-Mutant Dominant Class ---------------- Mutant | -10/Materials Mutant | -10/Mines Mutant | -9/Materials Mutant | -9/Mines Scavenger-Mutant | -8/Materials Resources | -11 -10 -10 -9 -9 -8 ----------- Run | Yrd Mat Min Mat Min Mat Matter Collected 728 | 180 96 25 86 92 249 Remotely . | . . . . . . Salvage Created 595 | . 132 14 . 54 395 Parts 49 | . 13 2 . 8 26 Haulers Intercepted . | . . . . . . Recyclers Shooed 1 | . . . . . 1 Parts Field Recycled . | . . . . . . Retrieved Matter . | . . . . . . Parts Self-Destructed . | . . . . . . Prevented . | . . . . . . Kills | -11 -10 -10 -9 -9 -8 ------- Run | Yrd Mat Min Mat Min Mat Combat Hostiles Destroyed 17 | . 3 1 . 4 9 Guns 12 | . 3 1 . 3 5 Cannons 5 | . . . . 1 4 Classes Destroyed 7 | . 2 1 . 2 2 Builder 2 | . . . . . 2 Tunneler 1 | . . . . 1 . Operator 1 | . 1 . . . . Swarmer 6 | . . 1 . 3 2 Grunt 8 | . 3 . . . 5 Sentry 2 | . . . . . 2 Assembled 1 | . . . . 1 . Best Kill Streak 5 | . 2 1 . 3 5 Combat Bots Only 3 | . 1 1 . 3 3 Max Kills in Single Turn 2 | . 1 1 . 1 2 Gunslinging . | . . . . . . Exploded . | . . . . . . Melee . | . . . . . . Uniques/NPCs Destroyed . | . . . . . . Combat | -11 -10 -10 -9 -9 -8 -------- Run | Yrd Mat Min Mat Min Mat Hostile Shots Fired 238 | . 14 7 . 15 202 Missed 66 | . 5 2 . 2 57 Damage Taken 2106 | . 101 41 . 157 1807 Core 309 | . 11 10 . 8 280 Absorbed by Shields . | . . . . . . Redirected to Shielding 40 | . . . . 2 38 Core Remaining (%) 96 | 100 . 91 . 98 . Volleys Fired 77 | . 12 3 2 16 44 Largest 2 | . 2 2 2 2 2 Hottest 100 | . 60 60 100 100 100 Shots Fired 122 | . 24 4 4 20 70 Gun 83 | . 24 4 2 4 49 Cannon 24 | . . . . 6 18 Launcher . | . . . . . . Special 15 | . . . 2 10 3 Kinetic 94 | . 12 3 2 10 67 Thermal 28 | . 12 1 2 10 3 Explosive . | . . . . . . Electromagnetic . | . . . . . . Robot Hit Streak 10 | . 5 2 2 6 10 Robot Miss Streak 4 | . 4 2 1 2 3 Penetration Max 1 | . . . . . 1 Secondary Targets 1 | . . . . . 1 Max Gunslinging Chain 1 | . . . . . 1 Shots Hit Robots 73 | . 14 2 3 9 45 Core Hits 36 | . 7 1 . 6 22 Critical Kills 5 | . . . . 1 4 Critical Parts Destroyed 3 | . . . . . 3 Critical Strikes 9 | . . . . 1 8 Burn 1 | . . . . . 1 Destroy 8 | . . . . 1 7 Melee Attacks . | . . . . . . Impact . | . . . . . . Slashing . | . . . . . . Piercing . | . . . . . . Sneak Attacks . | . . . . . . Combat Hostiles . | . . . . . . Follow-up Attacks . | . . . . . . Damage Inflicted 1014 | . 177 29 38 157 613 Guns 563 | . 177 25 27 43 291 Cannons 349 | . . . . 52 297 Explosions . | . . . . . . Melee . | . . . . . . Ramming 50 | . . 4 . 31 15 Kinetic 855 | . 120 25 27 95 588 Thermal 109 | . 57 . 11 31 10 Explosive . | . . . . . . Electromagnetic . | . . . . . . Impact . | . . . . . . Slashing . | . . . . . . Piercing . | . . . . . . Highest Corruption 7 | . . . . 7 . Average Corruption 7 | . . . . 7 . Corruption Purged . | . . . . . . Corruption Blocked . | . . . . . . Effects 6 | . . . . 6 . Message Errors 2 | . . . . 2 . Matter Fused 2 | . . . . 2 . Data Loss (minor) 2 | . . . . 2 . Overload Shots . | . . . . . . Overflow Damage 4 | . . . . 4 . Projectiles 4 | . . . . 4 . Explosions . | . . . . . . Melee . | . . . . . . Knockbacks 4 | . . . . 2 2 Impact . | . . . . . . Kinetic 3 | . . . . 1 2 Secondary 1 | . . . . 1 . Self-Inflicted Damage . | . . . . . . Shots . | . . . . . . Rammed . | . . . . . . Targets Rammed 4 | . . 1 . 2 1 Kicked 4 | . . 1 . 2 1 Crushed . | . . . . . . Highest Temperature 447 | . 18 . 72 331 447 Average Temperature 152 | . 11 . 37 152 189 Received Heat Transfer 756 | . 54 . . . 702 Effects 6 | . . . . 1 5 Shutdowns 2 | . . . . . 2 Energy Bleed 2 | . . . . 1 1 Interference 1 | . . . . . 1 Short Circuit 1 | . . . . . 1 Siege Activations . | . . . . . . Robots Corrupted . | . . . . . . Combat Hostiles . | . . . . . . Parts Fried . | . . . . . . Impact Corruptions . | . . . . . . Robots Melted . | . . . . . . Combat Hostiles . | . . . . . . Parts Melted . | . . . . . . Heat Transferred 685 | . 125 . 80 240 240 Parts Sabotaged . | . . . . . . Parts Stolen . | . . . . . . Parts Stripped . | . . . . . . Power Chain Reactions . | . . . . . . Alert | -11 -10 -10 -9 -9 -8 ------- Run | Yrd Mat Min Mat Min Mat Peak Influence 244 | . 116 126 112 96 244 Initial 45 | . . 45 . 43 2 Average 65 | . 56 57 44 42 126 Maximum Alert Level 1 | . . . . . 1 Low Security (%) 94 | 100 100 100 100 100 72 Level 1 5 | . . . . . 27 Level 2 . | . . . . . . Level 3 . | . . . . . . Level 4 . | . . . . . . Level 5 . | . . . . . . High Security . | . . . . . . Max Security . | . . . . . . Squads Dispatched 5 | . 1 . 1 . 3 Investigation 1 | . . . . . 1 Extermination . | . . . . . . Reinforcement 4 | . 1 . 1 . 2 Assault . | . . . . . . Garrison . | . . . . . . Intercept . | . . . . . . Searches Triggered . | . . . . . . Construction Impeded . | . . . . . . Haulers Reinforced . | . . . . . . Active Scanning Responses . | . . . . . . Cargo Convoy Interrupts . | . . . . . . Stealth | -11 -10 -10 -9 -9 -8 --------- Run | Yrd Mat Min Mat Min Mat Distress Signals 5 | . . . 1 . 4 Communications Jammed . | . . . . . . Distress Signals . | . . . . . . Times Spotted 47 | . 7 3 5 8 24 Peak Tracking Total 8 | . 3 3 2 4 8 Tactical Retreats 3 | . 1 . . 1 1 Traps | -11 -10 -10 -9 -9 -8 ------- Run | Yrd Mat Min Mat Min Mat Traps Triggered 1 | . . . . . 1 Indirectly . | . . . . . . Trap Hack Attempts . | . . . . . . Triggered . | . . . . . . Disarmed . | . . . . . . Reprogrammed . | . . . . . . Reused 1 | . . . . 1 . Traps Extracted . | . . . . . . Installed 1 | . . . . 1 . Triggered . | . . . . . . Most Traps Carried 1 | . . . . 1 . Machines | -11 -10 -10 -9 -9 -8 ---------- Run | Yrd Mat Min Mat Min Mat Machines Disabled 1 | . . . . . 1 Max in Single Turn 1 | . . . . . 1 Machines Repaired . | . . . . . . Machines Dismantled . | . . . . . . Machines Sabotaged . | . . . . . . Overloaded Fab Kills . | . . . . . . Hacking | -11 -10 -10 -9 -9 -8 --------- Run | Yrd Mat Min Mat Min Mat Machines Accessed 5 | . 2 . . . 3 Terminals 5 | . 2 . . . 3 Fabricators . | . . . . . . Repair Stations . | . . . . . . Recycling Units . | . . . . . . Scanalyzers . | . . . . . . Garrison Access . | . . . . . . Total Hacks 12 | . 4 . . . 8 Successful 5 | . 2 . . . 3 Failed 7 | . 2 . . . 5 Catastrophic 1 | . . . . . 1 Database Lockouts . | . . . . . . Manual 3 | . . . . . 3 Terminals 12 | . 4 . . . 8 Fabricators . | . . . . . . Repair Stations . | . . . . . . Recycling Units . | . . . . . . Scanalyzers . | . . . . . . Garrison Access . | . . . . . . Terminal Hacks 5 | . 2 . . . 3 Record 2 | . . . . . 2 Level Access Points 1 | . . . . . 1 Terminal Index 1 | . 1 . . . . Zone Layout 1 | . 1 . . . . Fabricator Hacks . | . . . . . . Repair Station Hacks . | . . . . . . Recycling Unit Hacks . | . . . . . . Scanalyzer . | . . . . . . Garrison Access Hacks . | . . . . . . Unauthorized Hacks . | . . . . . . Terminals . | . . . . . . Fabricators . | . . . . . . Repair Stations . | . . . . . . Recycling Units . | . . . . . . Scanalyzers . | . . . . . . Garrison Access . | . . . . . . Data Cores Recovered . | . . . . . . Used . | . . . . . . Hacking Detections 3 | . 1 . . . 2 Full Trace Events 1 | . . . . . 1 Feedback Events . | . . . . . . Feedback Blocked . | . . . . . . Robot Schematics Acquired . | . . . . . . Robots Built . | . . . . . . Authchips . | . . . . . . Time . | . . . . . . Total Robot Build Rating . | . . . . . . Part Schematics Acquired . | . . . . . . Parts Built . | . . . . . . Authchips . | . . . . . . Time . | . . . . . . Total Part Build Rating . | . . . . . . Parts Repaired . | . . . . . . Time . | . . . . . . Parts Recycled . | . . . . . . Recycled Matter . | . . . . . . Retrieved Matter . | . . . . . . Retrieved Components . | . . . . . . Parts Scanalyzed . | . . . . . . Part Schematics Acquired . | . . . . . . Parts Damaged . | . . . . . . Bothacking | -11 -10 -10 -9 -9 -8 ------------ Run | Yrd Mat Min Mat Min Mat Used RIF Installer . | . . . . . . Robots Hacked . | . . . . . . Non-combat . | . . . . . . Combat . | . . . . . . Robot Hacks Applied . | . . . . . . Relay Couplers Released . | . . . . . . Fabnet Peak Effective % . | . . . . . . Robots Rewired 1 | . . . . . 1 Allies Hacked . | . . . . . . Hacks Repelled . | . . . . . . Allies | -11 -10 -10 -9 -9 -8 -------- Run | Yrd Mat Min Mat Min Mat Total Allies 4 | . . 3 . . 1 Largest Group 3 | . . 3 3 3 1 Highest-Rated Group 40 | . . 40 40 40 15 Highest-Rated Ally 16 | . . 16 16 16 15 Total Orders . | . . . . . . Ally Attacks 75 | . . 21 24 27 3 Total Damage 676 | . . 141 240 239 56 Kills 12 | . . 2 5 4 1 Allies Corrupted . | . . . . . . Allies Melted . | . . . . . . Intel | -11 -10 -10 -9 -9 -8 ------- Run | Yrd Mat Min Mat Min Mat Robot Analysis Total . | . . . . . . Derelict Logs Recovered 2 | . . 1 . 1 . Drone Launches . | . . . . . . Drone Recoveries . | . . . . . . Exploration | -11 -10 -10 -9 -9 -8 ------------- Run | Yrd Mat Min Mat Min Mat Turns Passed 2281 | 2 265 553 334 659 468 Spaces Moved 1474 | 2 164 451 200 434 223 Core . | . . . . . . Treads 76 | . . . . . 76 Legs 1398 | 2 164 451 200 434 147 Wheels . | . . . . . . Hover . | . . . . . . Flight . | . . . . . . Fastest Speed 120 | 120 120 120 120 130 126 Average Speed 129 | 120 120 120 147 130 139 Slowest Speed 190 | 120 120 120 190 130 160 Overloaded Moves . | . . . . . . Propulsion Burnouts . | . . . . . . Robots Hopped . | . . . . . . Cave-ins Triggered . | . . . . . . Exploration Rate (%) 40 | 2 28 87 22 77 25 Regions Visited 5 Branch Regions 2 Pre-discovered Areas 2 | . . 1 . 1 . Known Exits Taken . | . . . . . . Unknown Exits Taken 5 | 1 1 1 1 1 . Scrap Searched 2 | . . 1 . 1 . Spaces Dug . | . . . . . . Terrain Destroyed 8 | . . . . 2 6 Melee . | . . . . . . Projectile 8 | . . . . 2 6 AOE . | . . . . . . Terrain Rammed . | . . . . . . Walls Destroyed . | . . . . . . Machines Disabled . | . . . . . . Actions | -11 -10 -10 -9 -9 -8 --------- Run | Yrd Mat Min Mat Min Mat Total 1719 | 1 207 458 239 501 313 Wait 96 | . 25 . 13 42 16 Move 1469 | 1 163 450 199 433 223 Hop . | . . . . . . Pick Up 12 | . . 2 6 2 2 Fast Attach 13 | . 1 . 3 . 9 Attach 8 | . . . . 1 7 Detach 1 | . . . . . 1 Swap 12 | . 4 1 5 1 1 Drop 18 | . 2 . 11 3 2 Fire 77 | . 12 3 2 16 44 Melee . | . . . . . . Ram . | . . . . . . Kick 4 | . . 1 . 2 1 Crush . | . . . . . . Escape Stasis . | . . . . . . Rewire 8 | . . 1 . . 7 Trap 1 | . . . . 1 . Miscellaneous . | . . . . . . Route ------- -11/Scrapyard -10/Materials -10/Mines -9/Materials -9/Mines (discovered 2 exits: *Mat x2) -8/Materials (discovered 4 exits: Fac x3 / Sto) History --------- Turn | Location | Event 1 | -11/Scrapyard | Discovered new exit (range 1) 3 | -11/Scrapyard | Entered Materials 63 | -10/Materials | Discovered new exit (range 13) 268 | -10/Materials | Entered Mines 286 | -10/Mines | Met a Derelict bent on vengeance 314 | -10/Mines | Build established: Mutant 314 | -10/Mines | Assisted by bots powering up and referring to "LRC-V3" 557 | -10/Mines | Learned location of Storage (-8) 579 | -10/Mines | A weapon hastily lodged in a ceiling crevice suddenly fell to the ground 741 | -10/Mines | Discovered new exit (range 6) 821 | -10/Mines | Entered Materials 821 | -9/Materials | Accompanied by 3 allies 821 | -9/Materials | Evolved 2 slots: Utility x2 1125 | -9/Materials | Discovered new exit (range 8) 1155 | -9/Materials | Entered Mines 1155 | -9/Mines | Accompanied by 3 allies 1156 | -9/Mines | Assembled infested the area 1161 | -9/Mines | Assisted by a Guerilla fighting off Assembled 1278 | -9/Mines | Found a hidden stash of uninstalled traps 1493 | -9/Mines | Discovered new exit (range 7) 1636 | -9/Mines | Discovered new exit (range 7) 1684 | -9/Mines | Learned location of 1 exit from Materials 1814 | -9/Mines | Entered Materials 1814 | -8/Materials | Evolved 2 slots: Propulsion x2 1815 | -8/Materials | Identified exit to Storage 1914 | -8/Materials | Build established: Scavenger-Mutant 2182 | -8/Materials | Lost 11 parts (1p4n3u3w) 2239 | -8/Materials | Identified exit to Factory 2282 | -8/Materials | Self-destructed Last Messages --------------- Found 3 level access points to Factory: (46,8) (48,93) (83,52) Map updated. 02242_ Connecting with Terminal... >>Query(Human) Homo sapiens, dominant species in the [Solar System] until civilization in that system was presumably wiped out during the [Solar War]. 02242_ ALERT: Suspicious activity at Terminal M012. Dispatching Investigation squad. 02249_ K-01 Serf cleans the Nuclear Reactor. 02263_ W-25 Informer sends out distress signal. 02273_ ALERT: Hostiles spotted, dispatching reinforcements to Terminal M006. 02279_ S-10 Pest destroyed. 02281_ K-01 Serf collects debris. 02281_ Critical hit (Burn: +37). Map ----- +----------------------------------------------------+ | ####????# ###??????????????????????? | | + +????# + #??????????????????????? | | # #????####/########??????????????????????? | | !#% ####### ##########+?????????????????? | | / ^ ????????????????? | | [# %####### ????????????????? | | #######* #[ !=# """ ????????????????? | | %% +="%" # """ """ ???????????????? | | ########%#% T"[# """ """ ????????????????? | | #????###[#![ !!# """ ????????????????? | | #??????# #######^ ?? ????????????? | | ########+##????# * """ ???????????? | | ## #???## """ ???????????? | | ## """ #???#T " """ #????????????? | | # """ #???## T w #????????????? | | # """ ! #????# " ! g #????????????? | | / #????# g""" #????????????? | | # """ #????# k """ #????????????? | | # """ #????#####+### """ #????????????? | | ## """ #?????# # #???????????